bitfinex-derivatives/quotes_ETHF0:USTF0_20251225
["timestamp","ask_amount","ask_price","bid_price","bid_amount"]
[1766637468964,0.00312436,2945.2,2944.2,9.454]
[1766637469166,3.397,2945.1,2944.2,9.454]
[1766637469870,0.00339652,2944.9,2944.2,9.454]
[1766637472665,3.397,2945.1,2944.2,9.454]
[1766637581765,3.397,2945.1,2944.0,0.00509476]
[1766637581971,3.397,2945.1,2944.1,3.397]
[1766637582369,4.28444869,2945.1,2944.1,3.397]
[1766637582572,1.01045283,2945.0,2944.0,0.00509476]
[1766637582771,1.01045283,2944.9,2944.0,0.00509476]
[1766637582970,3.397,2944.8,2944.0,0.00509476]
[1766637604489,3.397,2944.8,2943.9,3.397]
[1766637605385,0.00509476,2944.6,2944.1,0.00509476]
[1766637615497,3.397,2944.8,2944.1,0.00509476]
[1766637615796,3.397,2944.8,2944.2,3.397]
[1766637648229,3.397,2944.8,2944.1,0.00509476]
[1766637648430,3.397,2944.8,2944.2,3.397]
[1766637648634,3.397,2944.8,2944.2,2.996]
[1766637648830,3.397,2944.8,2944.2,2.8966]
[1766637658929,5.891,2944.7,2944.1,3.19979476]
[1766637659236,5.891,2944.7,2943.9,3.397]
[1766637660038,5.891,2944.7,2944.0,0.00509476]
[1766637660039,0.00509476,2944.6,2944.0,0.00509476]
[1766637661235,3.397,2944.5,2943.8,3.2976]
[1766637662340,3.397,2944.5,2943.9,0.00509476]
[1766637670740,3.397,2944.5,2943.8,3.2976]
[1766637671739,3.397,2944.5,2943.9,0.00509476]
[1766637712873,1.01784075,2944.4,2943.8,3.2976]
[1766637713071,3.397,2944.5,2943.8,3.2976]
[1766637713273,1.01778858,2944.4,2943.8,3.2976]
[1766637713574,3.397,2944.5,2943.8,3.2976]
[1766637713772,1.01778854,2944.4,2943.8,3.2976]
[1766637713973,3.397,2944.5,2943.9,0.00509476]
[1766637723084,1.01756355,2944.4,2941.9,6.357]
[1766637723282,6.90956355,2944.3,2943.1,3.398]
[1766637723479,3.398,2944.2,2943.1,4.16131422]
[1766637723786,3.398,2944.2,2943.1,3.398]
[1766637723976,3.398,2944.2,2943.1,4.16118674]
[1766637724885,3.398,2944.2,2943.1,4.16953848]
[1766637725382,3.398,2944.2,2943.4,0.00339652]
[1766637729888,4.33755453,2944.2,2943.4,0.00339652]
[1766637730388,4.32452475,2944.2,2943.4,0.00339652]
[1766637730887,3.398,2944.2,2943.4,0.00339652]
[1766637732491,4.32452475,2944.2,2943.4,0.00339652]
[1766637733483,4.32183276,2944.2,2943.4,0.00339652]
[1766637733784,0.92383276,2944.2,2943.4,0.00339652]
[1766637733984,3.398,2944.3,2943.4,0.00339652]
[1766637734184,7.27615206,2944.4,2943.4,0.00339652]
[1766637734584,8.19998482,2944.4,2943.4,0.00339652]
[1766637735288,8.19228312,2944.4,2943.4,0.00339652]
[1766637735793,7.27615206,2944.4,2943.4,0.00339652]
[1766637735991,8.19244508,2944.4,2943.4,0.00339652]
[1766637737187,7.27615206,2944.4,2943.4,0.00339652]
[1766637737893,8.2243802,2944.4,2943.4,0.00339652]
[1766637738293,7.27615206,2944.4,2943.4,0.00339652]
[1766637740589,7.27615206,2944.4,2943.5,6.031]
[1766637740791,7.27615206,2944.4,2943.6,3.398]
[1766637760498,7.27615206,2944.4,2943.6,3.2971]
[1766637760801,7.27615206,2944.4,2943.5,6.031]
[1766637760802,7.27615206,2944.4,2943.7,9.1273]
[1766637761006,7.27615206,2944.4,2943.7,8.8276]
[1766637761204,7.27615206,2944.4,2943.7,8.7267]
[1766637761802,5.9,2944.3,2943.7,8.7267]
[1766637769018,5.9,2944.3,2943.4,0.00339652]
[1766637769211,5.9,2944.3,2943.5,4.229]
[1766637772326,5.9,2944.3,2943.6,9.426]
[1766637779941,3.398,2944.2,2943.4,0.00339652]
[1766637780239,3.398,2944.2,2943.5,3.398]
[1766637781836,7.27615206,2944.4,2943.5,3.398]
[1766637808961,0.00509476,2944.6,2943.5,3.398]
[1766637809155,0.00509476,2944.6,2943.5,4.16060008]
[1766637809458,0.00509476,2944.6,2943.5,4.15922144]
[1766637811658,0.00509476,2944.6,2943.5,3.398]
[1766637811957,0.00509476,2944.6,2943.5,4.16991355]
[1766637812158,0.00509476,2944.6,2943.5,3.398]
[1766637812359,0.00509476,2944.6,2943.5,4.16991355]
[1766637813056,0.00509476,2944.6,2943.5,3.398]
[1766637813251,0.00509476,2944.6,2943.5,4.16970881]
[1766637813957,0.93354846,2944.8,2943.5,4.16970881]
[1766637814157,4.054,2945.1,2943.5,3.398]
[1766637814461,0.92951006,2944.8,2943.6,0.16997]
[1766637815163,0.92951006,2944.8,2943.9,0.16996]
[1766637815462,0.00312436,2945.2,2944.0,5.56195]
[1766637815660,0.00312436,2945.2,2944.1,8.495]
[1766637816056,0.00509476,2944.9,2944.1,8.495]
[1766637816565,0.00509476,2944.9,2944.1,9.2681362]
[1766637819164,0.00509476,2944.9,2944.1,9.269142]
[1766637834884,0.00312436,2945.2,2944.1,9.269142]
[1766637835887,0.00509476,2944.9,2944.1,9.269142]
[1766637836286,0.00509476,2944.9,2944.1,9.54036494]
[1766637838276,0.00312436,2945.2,2944.1,9.71030494]
[1766637839289,0.00509476,2944.9,2944.1,9.71030494]
[1766637840193,0.00312436,2945.2,2944.1,9.71030494]
[1766637841187,0.00509476,2944.9,2944.1,9.71030494]
[1766637841995,0.00509476,2944.9,2944.1,9.439082]
[1766637842698,0.00509476,2944.9,2944.2,9.42]
[1766637843393,0.00509476,2944.9,2944.1,0.0107]
[1766637843588,0.00509476,2944.9,2944.2,1.76841138]
[1766637843785,0.00509476,2944.9,2943.7,8.492]
[1766637843786,0.00509476,2944.9,2944.1,1.7794]
[1766637844093,0.00509476,2944.9,2944.1,1.0884]
[1766637844290,0.00509476,2944.9,2944.1,0.9947]
[1766637847296,0.00509476,2944.9,2943.8,3.397]
[1766637849089,0.00509476,2944.9,2943.8,3.3035]
[1766637849294,1.00757105,2944.8,2943.8,2.5327]
[1766637849500,3.397,2944.7,2943.8,2.4394]
[1766637849696,4.36490187,2944.7,2943.8,2.4394]
[1766637856708,3.397,2944.7,2943.8,2.4394]
[1766637857407,4.44392989,2944.7,2943.8,2.4394]
[1766637860312,3.397,2944.7,2943.8,2.4394]
[1766637860506,4.47542352,2944.7,2943.8,2.4394]
[1766637862409,3.397,2944.7,2943.8,2.4394]
[1766637862611,4.44696602,2944.7,2943.8,2.4394]
[1766637865805,3.397,2944.7,2943.8,2.4394]
[1766637866417,4.44866841,2944.7,2943.8,2.4394]
[1766637873123,1.00831935,2944.6,2943.8,2.4394]
[1766637873422,4.44866841,2944.7,2943.8,2.4394]
[1766637873717,1.00831902,2944.6,2943.8,2.4394]
[1766637873917,4.44866841,2944.7,2943.8,2.4394]
[1766637874123,1.00831902,2944.6,2943.8,2.4394]
[1766637874325,4.44866841,2944.7,2943.8,2.4394]
[1766637874525,1.00838865,2944.6,2943.8,2.4394]
[1766637874723,4.44866841,2944.7,2943.8,2.4394]
[1766637874922,1.00838869,2944.6,2943.8,2.4394]
[1766637875125,4.44866841,2944.7,2943.8,2.4394]
[1766637875324,1.00847168,2944.6,2943.8,2.4394]
[1766637875622,4.44866841,2944.7,2943.8,2.4394]
[1766637875824,1.00847168,2944.6,2943.8,2.4394]
[1766637876018,4.44866841,2944.7,2943.8,2.4394]
[1766637876219,1.00857602,2944.6,2943.8,2.4394]
[1766637876414,4.44866841,2944.7,2943.8,2.4394]
[1766637876615,1.00857638,2944.6,2943.8,2.4394]
[1766637876826,4.44866841,2944.7,2943.8,2.4394]
[1766637877126,1.00857638,2944.6,2943.8,2.4394]
[1766637877322,4.44866841,2944.7,2943.8,2.4394]
[1766637877527,1.00871749,2944.6,2943.8,2.4394]
[1766637877729,3.398,2944.5,2943.8,2.4394]
[1766637891140,8.87128628,2944.8,2943.8,2.4394]
[1766637891439,4.40660224,2944.7,2943.8,2.4394]
[1766637891642,3.398,2944.7,2943.8,2.4394]
[1766637891935,10.027015,2944.8,2943.8,2.4394]
[1766637892139,4.40661789,2944.7,2943.8,2.4394]
[1766637892337,3.398,2944.7,2943.8,2.4394]
[1766637892533,4.54372356,2944.7,2943.8,2.4394]
[1766637893541,3.398,2944.7,2943.8,2.4394]
[1766637893747,4.54603995,2944.7,2943.8,2.4394]
[1766637894142,3.398,2944.7,2943.8,2.4394]
[1766637894639,5.91109476,2944.9,2943.8,3.38795508]
[1766637894839,3.398,2944.8,2943.8,3.38795508]
[1766637895942,3.398,2944.8,2943.8,2.4394]
[1766637899546,3.398,2944.8,2943.8,3.46057391]
[1766637901348,3.398,2944.8,2943.8,2.4394]
[1766637901647,0.015,2945.0,2943.8,3.4742165]
[1766637901839,0.00312436,2945.2,2943.9,0.16996]
[1766637902042,0.00312436,2945.2,2944.0,0.16995]
[1766637902235,1.22354796,2945.5,2944.1,11.891]
[1766637902442,9.388,2945.7,2944.2,1.854]
[1766637902638,1.23603355,2945.5,2944.2,1.854]
[1766637903352,0.00384471,2945.5,2944.2,1.854]
[1766637903649,1.25812408,2945.5,2944.2,2.87007694]
[1766637904542,0.00384471,2945.5,2944.2,1.854]
[1766637904746,1.25704787,2945.5,2944.2,2.88650611]
[1766637905149,1.25704787,2945.5,2944.2,1.854]
[1766637905150,0.00384471,2945.5,2944.2,1.854]
[1766637905348,1.25704787,2945.5,2944.2,2.88650611]
[1766637905551,0.00384471,2945.5,2944.2,1.854]
[1766637907045,0.00384471,2945.5,2944.2,2.86828538]
[1766637908652,0.00384471,2945.5,2944.2,2.86702196]
[1766637909153,0.00384471,2945.5,2944.2,1.854]
[1766637909652,0.00384471,2945.5,2944.2,2.86702196]
[1766637910656,0.00384471,2945.5,2944.2,1.854]
[1766637910850,0.00384471,2945.5,2944.2,2.86199983]
[1766637911660,0.00384471,2945.5,2944.2,1.854]
[1766637911958,0.00384471,2945.5,2944.2,2.86199983]
[1766637913053,0.00384471,2945.5,2944.2,2.88164211]
[1766637914663,0.00384471,2945.5,2944.2,1.854]
[1766637914962,0.00384471,2945.5,2944.2,2.88186241]
[1766637916058,0.00384471,2945.5,2944.2,1.854]
[1766637916867,0.00384471,2945.5,2944.2,2.88812541]
[1766637917468,0.00384471,2945.5,2944.2,2.87118223]
[1766637918361,0.00384471,2945.5,2944.2,1.854]
[1766637919866,0.00384471,2945.5,2944.2,2.89574098]
[1766637920268,0.00384471,2945.5,2944.2,2.91406557]
[1766637922165,0.00384471,2945.5,2944.2,2.91329572]
[1766637922760,0.00384471,2945.5,2944.2,1.854]
[1766637923266,0.00384471,2945.5,2944.2,2.91329572]
[1766637923670,0.00384471,2945.5,2944.2,1.854]
[1766637923970,0.00384471,2945.5,2944.2,2.92288335]
[1766637924169,0.00384471,2945.5,2944.2,1.854]
[1766637924467,0.00384471,2945.5,2944.2,2.92288335]
[1766637925667,0.00384471,2945.5,2944.2,2.92579209]
[1766637926669,0.00384471,2945.5,2944.2,1.854]
[1766637926871,0.00384471,2945.5,2944.2,2.94401756]
[1766637927970,0.00384471,2945.5,2944.2,2.942963]
[1766637928477,0.00384471,2945.5,2944.2,1.854]
[1766637928770,0.00384471,2945.5,2944.2,2.942963]
[1766637928974,0.00384471,2945.5,2944.2,1.854]
[1766637929773,0.00384471,2945.5,2944.2,2.93278807]
[1766637930463,0.00384471,2945.5,2944.2,2.93012245]
[1766637931576,0.00384471,2945.5,2944.2,2.92215091]
[1766637932676,0.00384471,2945.5,2944.2,1.854]
[1766637932878,0.00384471,2945.5,2944.2,2.93575646]
[1766637933372,0.00384471,2945.5,2944.2,1.854]
[1766637934668,0.00384471,2945.5,2944.2,2.93575646]
[1766637934871,0.00384471,2945.5,2944.2,2.94403316]
[1766637935678,0.00384471,2945.5,2944.2,1.854]
[1766637935871,0.00384471,2945.5,2944.2,2.94464759]
[1766637938682,0.00384471,2945.5,2944.2,1.854]
[1766637938978,0.00384471,2945.5,2944.2,2.90506557]
[1766637940497,0.00384471,2945.5,2944.2,2.91518104]
[1766637940802,0.00384471,2945.5,2944.2,1.854]
[1766637941099,0.00384471,2945.5,2944.2,2.91518104]
[1766637941500,0.00384471,2945.5,2944.2,2.92710685]
[1766637941696,0.00384471,2945.5,2944.2,1.854]
[1766637941899,0.00384471,2945.5,2944.2,2.92710685]
[1766637943399,0.00384471,2945.5,2944.2,1.854]
[1766637944699,0.00384471,2945.5,2944.2,2.93555165]
[1766637946102,0.00384471,2945.5,2944.3,3.396]
[1766637946304,0.00384471,2945.5,2944.3,3.4004097]
[1766637950909,3.396,2945.4,2944.3,3.4004097]
[1766637952209,4.74002213,2945.4,2944.3,3.4004097]
[1766637952907,3.396,2945.4,2944.3,3.4004097]
[1766637954110,4.76020908,2945.4,2944.3,4.54410701]
[1766637955409,3.396,2945.4,2944.3,3.4004097]
[1766637955608,4.76220535,2945.4,2944.3,4.53520633]
[1766637956703,4.76220535,2945.4,2944.3,3.4004097]
[1766637956909,3.396,2945.4,2944.3,3.4004097]
[1766637958211,4.74260363,2945.4,2944.3,4.54250538]
[1766637958409,3.396,2945.4,2944.3,3.4004097]
[1766637958810,4.76941666,2945.4,2944.3,4.5306883]
[1766637959704,4.76941666,2945.4,2944.3,3.4004097]
[1766637959910,3.396,2945.4,2944.3,3.4004097]
[1766637960513,3.396,2945.4,2944.4,3.396]
[1766637961111,4.76389949,2945.4,2944.4,3.396]
[1766637961610,3.396,2945.4,2944.4,3.396]
[1766637962812,4.7397551,2945.4,2944.4,3.396]
[1766637963010,4.7397551,2945.4,2944.3,1.11997479]
[1766637963211,1.00435121,2945.3,2944.3,1.11997479]
[1766637963410,6.90835121,2945.2,2944.3,1.11997479]
[1766637963609,3.396,2945.1,2944.3,1.11997479]
[1766637976222,3.396,2945.1,2944.3,0.0044097]
[1766637979922,1.00340303,2945.0,2944.3,0.0044097]
[1766637980118,3.396,2945.1,2944.3,0.0044097]
[1766637980320,1.00384589,2945.0,2944.3,0.0044097]
[1766637980518,3.396,2945.1,2944.3,0.0044097]
[1766637980723,1.00608334,2945.0,2944.3,0.0044097]
[1766637981025,3.396,2945.1,2944.3,0.0044097]
[1766637981230,1.00599675,2945.0,2944.3,0.0044097]
[1766637981415,3.396,2945.1,2944.3,0.0044097]
[1766637981612,1.00602144,2945.0,2944.3,0.0044097]
[1766637981815,3.396,2945.1,2944.3,0.0044097]
[1766637982012,1.00623699,2945.0,2944.3,0.0044097]
[1766637982227,3.396,2945.1,2944.3,0.0044097]
[1766637982529,1.00623172,2945.0,2944.3,0.0044097]
[1766637982827,3.396,2945.1,2944.3,0.0044097]
[1766637983024,1.00623562,2945.0,2944.3,0.0044097]
[1766637983225,3.396,2945.1,2944.3,0.0044097]
[1766637983419,1.00620241,2945.0,2944.3,0.0044097]
[1766637983619,3.396,2945.1,2944.3,0.0044097]
[1766637983817,1.00620237,2945.0,2944.3,0.0044097]
[1766637984019,3.396,2945.1,2944.3,0.0044097]
[1766637984325,1.00615057,2945.0,2944.3,0.0044097]
[1766637984527,3.396,2945.1,2944.3,0.0044097]
[1766637984717,1.00620009,2945.0,2944.3,0.0044097]
[1766637984919,3.396,2945.1,2944.3,0.0044097]
[1766637985130,1.00619804,2945.0,2944.3,0.0044097]
[1766637985326,3.396,2945.1,2944.3,0.0044097]
[1766637985521,1.00624817,2945.0,2944.3,0.0044097]
[1766637985828,3.396,2945.1,2944.3,0.0044097]
[1766637986033,1.00625062,2945.0,2944.3,0.0044097]
[1766637986230,3.396,2945.1,2944.3,0.0044097]
[1766637986531,1.00623801,2945.0,2944.3,0.0044097]
[1766637986734,3.396,2945.1,2944.3,0.0044097]
[1766637987030,1.00632166,2945.0,2944.3,0.0044097]
[1766637987329,3.396,2945.1,2944.3,0.0044097]
[1766637987530,1.00641851,2945.0,2944.3,0.0044097]
[1766637987829,3.396,2945.1,2944.3,0.0044097]
[1766637988020,1.00641895,2945.0,2944.3,0.0044097]
[1766637988221,3.396,2945.1,2944.3,0.0044097]
[1766637988432,1.00654318,2945.0,2944.3,0.0044097]
[1766637988735,3.396,2945.1,2944.3,0.0044097]
[1766637988931,1.00654696,2945.0,2944.3,0.0044097]
[1766637989131,3.396,2945.1,2944.3,0.0044097]
[1766637989333,1.00654793,2945.0,2944.3,0.0044097]
[1766637989534,3.396,2945.1,2944.3,0.0044097]
[1766637989722,1.00670814,2945.0,2944.3,0.0044097]
[1766637989918,3.396,2945.1,2944.3,0.0044097]
[1766637990124,1.00670978,2945.0,2944.3,0.0044097]
[1766637990427,3.396,2945.1,2944.3,0.0044097]
[1766637990625,1.00671355,2945.0,2944.3,0.0044097]
[1766637990826,3.396,2945.1,2944.3,0.0044097]
[1766637991131,1.00671273,2945.0,2944.3,0.0044097]
[1766637991329,1.00671273,2944.9,2944.3,0.0044097]
[1766637991531,3.397,2944.8,2944.0,7.83460345]
[1766637992530,3.397,2944.8,2944.0,7.83793229]
[1766638004242,3.397,2944.8,2944.0,13.84993229]
[1766638005853,3.397,2944.8,2944.1,3.397]
[1766638023746,3.397,2944.8,2944.0,1.15485083]
[1766638023959,1.0108813,2944.7,2943.4,3.40039652]
[1766638024163,6.9158813,2944.6,2943.4,6.32239652]
[1766638024360,4.4078813,2944.5,2943.5,3.397]
[1766638024562,1.0108813,2944.4,2943.5,3.397]
[1766638024765,1.01022736,2944.3,2943.5,3.397]
[1766638025055,3.397,2944.2,2943.5,3.40038471]
[1766638025256,4.73593526,2944.2,2943.5,3.40038471]
[1766638026063,4.73586214,2944.2,2943.5,3.40038471]
[1766638027264,4.7431714,2944.2,2943.5,3.40038471]
[1766638028566,4.73526943,2944.2,2943.5,3.40038471]
[1766638029965,4.75611428,2944.2,2943.5,3.40038471]
[1766638031159,3.397,2944.2,2943.5,3.40038471]
[1766638031364,4.77753909,2944.2,2943.5,3.40038471]
[1766638032168,4.80971756,2944.2,2943.5,3.40038471]
[1766638032355,3.397,2944.2,2943.5,3.40038471]
[1766638032559,4.78712164,2944.2,2943.5,3.40038471]
[1766638033462,3.397,2944.2,2943.5,3.40038471]
[1766638033669,4.80586513,2944.2,2943.5,3.40038471]
[1766638034664,3.397,2944.2,2943.5,3.40038471]
[1766638034852,4.76344541,2944.2,2943.5,3.40038471]
[1766638036469,4.78210509,2944.2,2943.5,3.40038471]
[1766638037168,3.397,2944.2,2943.5,3.40038471]
[1766638037369,4.78210509,2944.2,2943.5,3.40038471]
[1766638037560,4.80590606,2944.2,2943.5,3.40038471]
[1766638037969,3.397,2944.2,2943.5,3.40038471]
[1766638038160,4.80590606,2944.2,2943.5,3.40038471]
[1766638038665,3.397,2944.2,2943.5,3.40038471]
[1766638038967,4.80663873,2944.2,2943.5,3.40038471]
[1766638040170,4.81495792,2944.2,2943.5,3.40038471]
[1766638041466,4.78078591,2944.2,2943.5,3.40038471]
[1766638043175,3.397,2944.2,2943.5,3.40038471]
[1766638043376,4.77828685,2944.2,2943.5,3.40038471]
[1766638043971,3.397,2944.2,2943.5,3.40038471]
[1766638044178,4.77828685,2944.2,2943.5,3.40038471]
[1766638044366,4.80729586,2944.2,2943.5,3.40038471]
[1766638045977,4.7746933,2944.2,2943.5,3.40038471]
[1766638046975,3.397,2944.2,2943.5,3.40038471]
[1766638047278,4.79604463,2944.2,2943.5,3.40038471]
[1766638048184,4.79431087,2944.2,2943.5,3.40038471]
[1766638048479,3.397,2944.2,2943.5,3.40038471]
[1766638048677,4.79431087,2944.2,2943.5,3.40038471]
[1766638049069,1.29791087,2944.2,2943.5,3.40038471]
[1766638049277,1.102672,2944.2,2943.5,3.40038471]
[1766638049577,0.831972,2944.2,2943.5,3.40038471]
[1766638049881,1.373372,2944.2,2943.5,3.40038471]
[1766638050374,1.40222472,2944.2,2943.5,3.40038471]
[1766638051069,3.398,2944.4,2943.5,3.40038471]
[1766638051269,1.3975294,2944.2,2943.5,3.40038471]
[1766638051685,3.398,2944.4,2943.5,3.40038471]
[1766638051886,1.3975294,2944.2,2943.5,3.40038471]
[1766638052584,1.36821348,2944.2,2943.5,3.40038471]
[1766638052974,3.398,2944.4,2943.5,3.40038471]
[1766638053175,1.36821348,2944.2,2943.5,3.40038471]
[1766638053778,1.39260832,2944.2,2943.5,3.40038471]
[1766638054278,1.28983957,2944.2,2943.5,3.40038471]
[1766638054684,4.86325587,2944.4,2943.5,3.40038471]
[1766638055186,3.398,2944.4,2943.5,3.40038471]
[1766638055387,4.86325587,2944.4,2943.5,3.40038471]
[1766638055884,4.8801613,2944.4,2943.5,3.40038471]
[1766638057081,4.88116998,2944.4,2943.5,3.40038471]
[1766638058291,4.85039628,2944.4,2943.5,3.40038471]
[1766638058992,3.398,2944.4,2943.5,3.40038471]
[1766638059181,4.85039628,2944.4,2943.5,3.40038471]
[1766638060486,4.85066112,2944.4,2943.5,3.40038471]
[1766638060691,3.398,2944.4,2943.5,3.40038471]
[1766638060887,4.85066112,2944.4,2943.5,3.40038471]
[1766638061295,3.398,2944.4,2943.5,3.40038471]
[1766638061492,4.85066112,2944.4,2943.5,3.40038471]
[1766638061993,3.398,2944.4,2943.5,3.40038471]
[1766638063492,4.86835978,2944.4,2943.5,3.40038471]
[1766638064392,4.87635947,2944.4,2943.5,3.40038471]
[1766638065098,3.398,2944.4,2943.5,3.40038471]
[1766638065596,5.909,2944.3,2943.5,3.40038471]
[1766638066797,7.37567542,2944.3,2943.5,3.40038471]
[1766638067299,5.909,2944.3,2943.5,3.40038471]
[1766638067506,7.3927374,2944.3,2943.5,3.40038471]
[1766638067999,5.909,2944.3,2943.5,3.40038471]
[1766638068999,7.37706687,2944.3,2943.5,3.40038471]
[1766638069396,5.909,2944.3,2943.5,3.40038471]
[1766638069596,7.37092095,2944.3,2943.5,3.40038471]
[1766638070203,5.909,2944.3,2943.5,3.40038471]
[1766638070498,7.37092095,2944.3,2943.5,3.40038471]
[1766638071008,5.909,2944.3,2943.5,3.40038471]
[1766638073307,7.35530813,2944.3,2943.5,3.40038471]
[1766638074205,7.37257477,2944.3,2943.5,3.40038471]
[1766638074906,7.38802146,2944.3,2943.5,3.40038471]
[1766638077109,7.36210361,2944.3,2943.5,3.40038471]
[1766638078513,7.36207161,2944.3,2943.5,3.40038471]
[1766638079308,5.909,2944.3,2943.5,3.40038471]
[1766638079513,7.36207161,2944.3,2943.5,3.40038471]
[1766638079709,7.38343566,2944.3,2943.5,3.40038471]
[1766638081316,7.3631409,2944.3,2943.5,3.40038471]
[1766638081617,5.909,2944.3,2943.5,3.40038471]
[1766638082616,7.3631409,2944.3,2943.5,3.40038471]
[1766638083119,5.909,2944.3,2943.5,3.40038471]
[1766638083614,7.35923971,2944.3,2943.5,3.40038471]
[1766638083808,5.909,2944.3,2943.5,3.40038471]
[1766638084010,7.36967302,2944.3,2943.5,3.40038471]
[1766638085219,5.909,2944.3,2943.5,3.40038471]
[1766638085520,7.403451,2944.3,2943.5,3.40038471]
[1766638086216,5.909,2944.3,2943.5,3.40038471]
[1766638087125,7.41024009,2944.3,2943.5,3.40038471]
[1766638087615,5.909,2944.3,2943.5,3.40038471]
[1766638087812,7.3604166,2944.3,2943.5,3.40038471]
[1766638089320,7.38182054,2944.3,2943.5,3.40038471]
[1766638091316,5.909,2944.3,2943.5,3.40038471]
[1766638091513,7.4108084,2944.3,2943.5,3.40038471]
[1766638092119,5.909,2944.3,2943.5,3.40038471]
[1766638093421,7.4108084,2944.3,2943.5,3.40038471]
[1766638095214,5.909,2944.3,2943.5,3.40038471]
[1766638095417,7.3936587,2944.3,2943.5,3.40038471]
[1766638096622,5.909,2944.3,2943.5,3.40038471]
[1766638097324,7.38813832,2944.3,2943.5,3.40038471]
[1766638098222,5.909,2944.3,2943.5,3.40038471]
[1766638098417,7.38014009,2944.3,2943.5,3.40038471]
[1766638098721,7.3836466,2944.3,2943.5,3.40038471]
[1766638100321,7.38183816,2944.3,2943.5,3.40038471]
[1766638101222,5.909,2944.3,2943.5,3.40038471]
[1766638101425,7.39745648,2944.3,2943.5,3.40038471]
[1766638103518,5.909,2944.3,2943.5,3.40038471]
[1766638104226,7.38337776,2944.3,2943.5,3.40038471]
[1766638105721,1.47437776,2944.3,2943.5,3.40038471]
[1766638105931,1.19677279,2944.3,2943.5,3.40038471]
[1766638106123,16.82875234,2944.5,2943.5,3.40038471]
[1766638106327,18.29254921,2944.5,2943.5,3.40038471]
[1766638107028,18.29454576,2944.5,2943.5,3.40038471]
[1766638107227,16.82875234,2944.5,2943.5,3.40038471]
[1766638107429,18.29454576,2944.5,2943.5,3.40038471]
[1766638108027,18.2977776,2944.5,2943.5,3.40038471]
[1766638108429,16.82875234,2944.5,2943.5,3.40038471]
[1766638108630,18.2977776,2944.5,2943.5,3.40038471]
[1766638109628,16.82875234,2944.5,2943.5,3.40038471]
[1766638110230,18.26666503,2944.5,2943.5,3.40038471]
[1766638110828,18.29810607,2944.5,2943.5,3.40038471]
[1766638111729,16.82875234,2944.5,2943.5,3.40038471]
[1766638112028,18.30370093,2944.5,2943.5,3.40038471]
[1766638112633,16.82875234,2944.5,2943.5,3.40038471]
[1766638113231,18.27407518,2944.5,2943.5,3.40038471]
[1766638113828,16.82875234,2944.5,2943.5,3.40038471]
[1766638114731,18.30929322,2944.5,2943.5,3.40038471]
[1766638115232,16.82875234,2944.5,2943.5,3.40038471]
[1766638115531,18.28961011,2944.5,2943.5,3.40038471]
[1766638115719,16.82875234,2944.5,2943.5,3.40038471]
[1766638115923,18.28961011,2944.5,2943.5,3.40038471]
[1766638116234,16.82875234,2944.5,2943.5,3.40038471]
[1766638116436,18.27823386,2944.5,2943.5,3.40038471]
[1766638118738,18.29175978,2944.5,2943.5,3.40038471]
[1766638119138,16.82875234,2944.5,2943.5,3.40038471]
[1766638119330,18.29175978,2944.5,2943.5,3.40038471]
[1766638121538,18.30048522,2944.5,2943.5,3.40038471]
[1766638122242,16.82875234,2944.5,2943.5,3.40038471]
[1766638122436,18.31612573,2944.5,2943.5,3.40038471]
[1766638122631,18.33385921,2944.5,2943.5,3.40038471]
[1766638125241,18.3342217,2944.5,2943.5,3.40038471]
[1766638126642,16.82875234,2944.5,2943.5,3.40038471]
[1766638126843,18.3052069,2944.5,2943.5,3.40038471]
[1766638127446,16.82875234,2944.5,2943.5,3.40038471]
[1766638127644,18.3052069,2944.5,2943.5,3.40038471]
[1766638127945,18.3113412,2944.5,2943.5,3.40038471]
[1766638128245,16.82875234,2944.5,2943.5,3.40038471]
[1766638128542,18.3113412,2944.5,2943.5,3.40038471]
[1766638128943,16.82875234,2944.5,2943.5,3.40038471]
[1766638129246,18.30854318,2944.5,2943.5,3.40038471]
[1766638130143,16.82875234,2944.5,2943.5,3.40038471]
[1766638131244,18.33396271,2944.5,2943.5,3.40038471]
[1766638132743,18.30358324,2944.5,2943.5,3.40038471]
[1766638134149,16.82875234,2944.5,2943.5,3.40038471]
[1766638134443,18.31646676,2944.5,2943.5,3.40038471]
[1766638134847,18.31646676,2944.5,2943.5,11.89438471]
[1766638135053,18.32523164,2944.5,2943.5,11.89438471]
[1766638136955,18.2832308,2944.5,2943.5,11.89438471]
[1766638137256,16.82875234,2944.5,2943.5,11.89438471]
[1766638138458,18.2832308,2944.5,2943.5,11.89438471]
[1766638139455,16.82875234,2944.5,2943.5,11.89438471]
[1766638139653,16.82875234,2944.5,2943.6,3.397]
[1766638139957,18.03858175,2944.5,2943.6,3.397]
[1766638140256,16.82875234,2944.5,2943.6,3.397]
[1766638141052,18.03858175,2944.5,2943.6,3.397]
[1766638141357,18.05671785,2944.5,2943.6,3.397]
[1766638141657,16.82875234,2944.5,2943.6,3.397]
[1766638141959,18.05671785,2944.5,2943.6,3.397]
[1766638142149,18.0679454,2944.5,2943.6,3.397]
[1766638142650,18.0679454,2944.5,2943.7,6.003]
[1766638143258,16.82875234,2944.5,2943.7,6.003]
[1766638144058,18.03749079,2944.5,2943.7,6.003]
[1766638144360,18.03749079,2944.5,2943.8,3.397]
[1766638144555,18.06680937,2944.5,2943.8,3.397]
[1766638145160,5.944,2944.5,2943.8,3.397]
[1766638145453,7.18205703,2944.5,2943.8,3.397]
[1766638145658,7.17806814,2944.5,2943.8,3.397]
[1766638146461,5.944,2944.5,2943.8,3.397]
[1766638147658,7.17806814,2944.5,2943.8,3.397]
[1766638147954,1.23406814,2944.5,2943.8,3.397]
[1766638148757,1.48346498,2944.5,2943.8,3.397]
[1766638149252,3.398,2944.6,2943.9,3.397]
[1766638149453,1.48346498,2944.5,2943.9,3.397]
[1766638149758,3.398,2944.6,2943.9,3.397]
[1766638149959,1.48997215,2944.5,2943.9,3.397]
[1766638151060,3.398,2944.6,2943.9,3.397]
[1766638151258,1.48383872,2944.5,2943.9,3.397]
[1766638151560,3.398,2944.6,2943.9,3.397]
[1766638151764,1.48383872,2944.5,2943.9,3.397]
[1766638152361,3.398,2944.6,2943.9,3.397]